Body Name,Body Code,Service Label,Service Code,Organisational Unit ,Expenditure, Payment Date,Transaction Number ,Net Payment ,Supplier Name,Supplier ID
North West Leicestershire District Council,31UH ,Legal & Democratic,LDLS,Legal Services,Legal services,01/02/2012,1229234,690.00,Browne Jacobson LLP,A000251
North West Leicestershire District Council,31UH ,Finance,EXCH,Exchequer Services,Recruitment - Agency Broker,01/02/2012,1229235,"7,888.45",Comensura Limited,A036958
North West Leicestershire District Council,31UH ,Leisure Centres,MLC,Measham Leisure Centre,Claim,01/02/2012,1229406,"1,315.24",Measham Leisure Centre,A027454
North West Leicestershire District Council,31UH ,Corporate Director,HR,Human Resources,Leasing - Vehicles,01/02/2012,1229408,"5,055.71",Arnold Clark Vehicle Management,A035549
North West Leicestershire District Council,31UH ,Street Management,ESS,Environment - Street Scene,Gas & electricity supplier,01/02/2012,1229354,"2,026.75",E.ON Energy Electricity Income Account,A028766
North West Leicestershire District Council,31UH ,Leisure & Culture,CULTYP,Cultural Services Children & YoungPeople,Funding,01/02/2012,1229331,"4,142.47",Leicestershire Partnership NHS Trust,A038707
North West Leicestershire District Council,31UH ,Leisure & Culture,CULTYP,Cultural Services Children & YoungPeople,Funding,01/02/2012,1229330,"6,250.00",Leicestershire Partnership NHS Trust,A038707
North West Leicestershire District Council,31UH ,Finance,FINPLA,Financial Planning,Architec fees ,01/02/2012,1229329,"2,500.00",Carillon Radio,A028670
North West Leicestershire District Council,31UH ,Legal & Democratic,LDLS,Legal Services,Subscription,01/02/2012,1229279,650.00,Central Law Training Ltd,A032550
North West Leicestershire District Council,31UH ,Legal & Democratic,LDLS,Legal Services,Subscription,01/02/2012,1229278,680.00,Central Law Training Ltd,A032550
North West Leicestershire District Council,31UH ,Legal & Democratic,LDLS,Legal Services,Legal services,01/02/2012,1229277,"6,910.00",Browne Jacobson LLP,A000251
North West Leicestershire District Council,31UH ,Finance,FINPLA,Financial Planning,Leasing - Vehicles and Equipment,01/02/2012,1229238,"13,081.85",SG Equipment Finance Limited,A030097
North West Leicestershire District Council,31UH ,Finance,FINPLA,Financial Planning,Leasing - Vehicles and Equipment,01/02/2012,1229237,"62,161.56",SG Equipment Finance Limited,A030097
North West Leicestershire District Council,31UH ,Finance,FINPLA,Financial Planning,Leasing - Vehicles,01/02/2012,1229236,"1,378.91",JCB Finance (Leasing) Ltd,A033051
North West Leicestershire District Council,31UH ,Information Technology,ICT,ICT Services,Photocopiers and consumables,01/02/2012,1229454,"1,262.32",Danwood Contract Rentals,A033719
North West Leicestershire District Council,31UH ,Environmental Health,EES,Environmental Services,Grant payment,01/02/2012,1229464,"1,109.00",Leicestershire County Council,A038469
North West Leicestershire District Council,31UH ,Environmental Health,EES,Environmental Services,Building Services,01/02/2012,1229465,"3,100.54",John Merison BMC Ltd,A001092
North West Leicestershire District Council,31UH ,Environmental Health,EES,Environmental Services,Grant payment,01/02/2012,1229466,"3,062.00",Leicestershire County Council,A038469
North West Leicestershire District Council,31UH ,Environmental Health,EES,Environmental Services,Grant payment,01/02/2012,1229467,"5,332.00",Leicestershire County Council,A038469
North West Leicestershire District Council,31UH ,Environmental Health,EES,Environmental Services,Grant payment,01/02/2012,1229468,"2,613.82",RSA Contracts,A039203
North West Leicestershire District Council,31UH ,Housing Repairs,HRAHRM,HRA Housing Repairs & Maintenance,Fuel servicing (Hsg Maintenance),01/02/2012,1229633,"2,175.68",Elite Sweep Service,A035675
North West Leicestershire District Council,31UH ,Housing Repairs,HRAHRM,HRA Housing Repairs & Maintenance,Building Services,01/02/2012,1229634,"2,692.81",J Tomlinson Ltd,A033342
North West Leicestershire District Council,31UH ,Leisure & Culture,CULTYP,Cultural Services Children & YoungPeople,Grant payment,01/02/2012,1229700,600.00,Bardon Hill Juniors FC,A038830
North West Leicestershire District Council,31UH ,Legal & Democratic,LDELC,Electoral & Land Charges,IT - Scanning equipment,08/02/2012,1229713,"1,561.79",Idox Software Ltd,A034157
North West Leicestershire District Council,31UH ,Finance,EXCH,Exchequer Services,Income Tax and National Insurance Contribution,07/02/2012,1230049,"259,206.76",Inland Revenue,A027321
North West Leicestershire District Council,31UH ,Communications,CP,Corporate - Communications,Postage - Franking machine leasing,08/02/2012,1229747,"1,159.33",Neopost Finance Limited,A031590
North West Leicestershire District Council,31UH ,Finance,EXCH,Exchequer Services,Recruitment - Agency Broker,08/02/2012,1229911,"8,350.72",Comensura Limited,A036958
North West Leicestershire District Council,31UH ,Finance,EXCH,Exchequer Services,HRA subsidy,07/02/2012,1230042,"180,616.00",Department for Communities & Local Government,A028518
North West Leicestershire District Council,31UH ,Environmental Health,EES,Environmental Services,Grant payment,08/02/2012,1230105,885.00,Leicestershire County Council,A038469
North West Leicestershire District Council,31UH ,Environmental Health,EES,Environmental Services,Building Services,08/02/2012,1230106,"3,024.52",John Merison BMC Ltd,A001092
North West Leicestershire District Council,31UH ,Finance,FINPLA,Financial Planning,Finance Company,08/02/2012,1230110,"2,964.59",Barclays Mercantile Business,A003940
North West Leicestershire District Council,31UH ,Finance,FINPLA,Financial Planning,Finance Company,08/02/2012,1230096,"1,798.00",Santander Asset Finance PLC,A033672
North West Leicestershire District Council,31UH ,Finance,FINPLA,Financial Planning,Leasing - Vehicles and Equipment,08/02/2012,1230097,"2,129.44",Capital Bank Leasing Ltd,A020440
North West Leicestershire District Council,31UH ,Finance,FINPLA,Financial Planning,Leasing - Vehicles and Equipment,08/02/2012,1230098,"9,422.91",Capital Bank Leasing Ltd,A020440
North West Leicestershire District Council,31UH ,Finance,FINPLA,Financial Planning,Leasing - Vehicles and Equipment,08/02/2012,1230099,"43,094.25",Capital Bank Leasing Ltd,A020440
North West Leicestershire District Council,31UH ,Finance,FINPLA,Financial Planning,Leasing - Vehicles and Equipment,08/02/2012,1230100,"65,552.55",Capital Bank Leasing Ltd,A020440
North West Leicestershire District Council,31UH ,Finance,EXCH,Exchequer Services,IT - software services,08/02/2012,1230133,867.49,Selima Limited,A010859
North West Leicestershire District Council,31UH ,Finance,FINPLA,Financial Planning,Insurance,08/02/2012,1230115,"3,792.00",Zurich Municipal,A001835
North West Leicestershire District Council,31UH ,Housing,HRAOPS,HRA Older Persons Service,Utility Charges,08/20/2012,1230229,531.53,British Gas Business,A035745
North West Leicestershire District Council,31UH ,Housing,HRAHM,HRA Housing Management,Professional Services,15/02/2012,1230230,"1,320.00",Charnwood Borough Council,A000323
North West Leicestershire District Council,31UH ,Finance,EXCH,Exchequer Services,Recruitment - Agency Broker,15/02/2012,1230215,"4,919.75",Comensura Limited,A036958
North West Leicestershire District Council,31UH ,Leisure & Culture,CULTYP,Cultural Services Children & YoungPeople,Education,15/02/2012,1230216,"1,650.00",LCC Warren Hills Primary School,A028026
North West Leicestershire District Council,31UH ,Neighbourhoods & Communities,NACN,N & C Neighbourhoods,Grants,15/02/2012,1230290,"1,720.83",Age Concern Leicestershire & Rutland (Welfare services) ltd,A027552
North West Leicestershire District Council,31UH ,Neighbourhoods & Communities,NACN,N & C Neighbourhoods,Grant,15/02/2012,1230292,"5,000.00",Ibstock Community College,A027508
North West Leicestershire District Council,31UH ,Information Technology,ICT,ICT Services,IT - Telephone and computing,15/02/2012,1230296,"4,708.63",Virgin Media Business,A008908
North West Leicestershire District Council,31UH ,Street Management,ENOT,Environment Transport,Road fund licences,15/02/2012,1230394,"1,070.00",Post Office Limited,A008559
North West Leicestershire District Council,31UH ,Leisure Centres,HPLC,Hood Park Leisure Centre,Water - Sewerage services,15/02/2012,1230472,"1,018.38",Severn Trent Water Limited,A001468
North West Leicestershire District Council,31UH ,Leisure Centres,HPLC,Hood Park Leisure Centre,Energy - Electricity - Contract 1,15/02/2012,1230473,"1,500.70",Southern Electric,A030266
North West Leicestershire District Council,31UH ,Leisure Centres,HLC,Hermitage Leisure Centre,Water - Sewerage services,15/02/2012,1230475,"1,441.24",Severn Trent Water Limited,A001468
North West Leicestershire District Council,31UH ,Environmental Health,EES,Environmental Services,Disability - Support Suppliers - Home Equipment,15/02/2012,1230510,"1,001.90",A M Norris Limited,A001203
North West Leicestershire District Council,31UH ,Environmental Health,EES,Environmental Services,Grant,15/02/2012,1230511,"2,395.00",Leicestershire County Council,A038469
North West Leicestershire District Council,31UH ,Planning & Development,ECP,Environment Community Planning,Training,15/02/2012,1230535,"1,372.92",Hinckley & Bosworth Borough Council,A000770
North West Leicestershire District Council,31UH ,Finance,EXCH,Exchequer Services,Debt Collection,15/02/2012,1230529,"1,063.47",Kings Armoured Security Services Ltd,A004468
North West Leicestershire District Council,31UH ,Street Management,ENOGT,Environment General Technician,Subscriptions -  Annual Revenue Contribution to Prospect Leics Ltd,15/02/2012,1230532,"4,700.45",Harborough District Council,A008631
North West Leicestershire District Council,31UH ,Environmental Health,EES,Environmental Services,Grant,15/02/2012,1230537,"24,098.00",EE & JM Thompson,A027562
North West Leicestershire District Council,31UH ,Finance,FINPLA,Financial Planning,Leasing - Vehicles and Equipment,15/02/2012,1230557,"2,500.00",Asset Advantage Limited,A034516
North West Leicestershire District Council,31UH ,Environmental Health,EES,Environmental Services,Grants,15/02/2012,1230539,"3,601.02",Adaptions,A038668
North West Leicestershire District Council,31UH ,Legal & Democratic,LDELC,Electoral & Land Charges,Printing - Election Specialists - Ballot Papers and Postal Votes,15/02/2012,1230599,795.00,Print Image Network Limited,A035574
North West Leicestershire District Council,31UH ,Communications,CP,Corporate - Communications,Postage - Franking machine leasing,15/02/2012,1230607,"1,120.07",Neopost Finance Limited,A031590
North West Leicestershire District Council,31UH ,Finance,EXCH,Exchequer Services,Recruitment - Agency Broker,15/02/2012,1230612,"6,297.10",Comensura Limited,A036958
North West Leicestershire District Council,31UH ,Property Services,PROPFM,Property Facilities Management,Energy - Electricity - Contract 1,22/02/2012,1230719,"4,029.87",Southern Electric,A030266
North West Leicestershire District Council,31UH ,Environmental Health,EES,Environmental Services,Grants,22/02/2012,1230720,"3,891.90",Adaptions,A038668
North West Leicestershire District Council,31UH ,Leisure Centres,HLC,Hermitage Leisure Centre,Water - Sewerage services,22/02/2012,1230721,650.00,Severn Trent Water Limited,A001468
North West Leicestershire District Council,31UH ,Leisure Centres,HLC,Hermitage Leisure Centre,Energy - Electricity - Contract 1,22/02/2012,1230722,"2,063.92",Southern Electric,A030266
North West Leicestershire District Council,31UH ,Leisure Centres,MLC,Measham Leisure Centre,Claim,22/02/2012,1230723,798.80,Measham Leisure Centre,A027454
North West Leicestershire District Council,31UH ,Housing,HRAHM,HRA Housing Management,Water - Sewerage services,22/02/2012,1230726,912.61,Severn Trent Water Limited,A001468
North West Leicestershire District Council,31UH ,Property Services,PROPFM,Property Facilities Management,Water - Sewerage services,22/02/2012,1230731,"1,360.61",Severn Trent Water Limited,A001468
North West Leicestershire District Council,31UH ,Property Services,PROPCL,Property Commercial Lettings,IT - Telephone and computing,22/02/2012,1230735,"1,820.13",British Telecommunications Plc,A000233
North West Leicestershire District Council,31UH ,Housing,HRAHM,HRA Housing Management,Fuel - solid,22/02/2012,1230736,"2,830.91",Coal4Energy Ltd,A031928
North West Leicestershire District Council,31UH ,Housing,HRAHM,HRA Housing Management,Fuel - solid,22/02/2012,1230737,"3,152.17",Coal4Energy Ltd,A031928
North West Leicestershire District Council,31UH ,Housing,HRAHM,HRA Housing Management,Fuel - solid,22/02/2012,1230739,"4,316.35",Coal4Energy Ltd,A031928
North West Leicestershire District Council,31UH ,Finance,FINPLA,Financial Planning,Leasing - Vehicles and Equipment,22/02/2012,1230759,"1,525.00",SG Equipment Finance Limited,A030097
North West Leicestershire District Council,31UH ,Leisure & Culture,CULTYP,Cultural Services Children & YoungPeople,Funding ,22/02/2012,1230779,"5,559.08",Leicestershire Partnership NHS Trust,A038707
North West Leicestershire District Council,31UH ,Housing Repairs,HRAHRM,HRA Housing Repairs & Maintenance,Gas & Electricity - Boiler replacement,01/02/2012,1229502,"1,037.12",Lakers UK,A031787
North West Leicestershire District Council,31UH ,Housing Repairs,HRAHRM,HRA Housing Repairs & Maintenance,Gas & Electricity - Boiler replacement,01/02/2012,1229492,"1,261.04",Lakers UK,A031787
North West Leicestershire District Council,31UH ,Housing Repairs,HRAHRM,HRA Housing Repairs & Maintenance,Housing Maintenance - Replacement Windows and Doors,01/02/2012,1229491,"2,413.61",SBP Limited (Trading as Plastal & Permadoor),A036741
North West Leicestershire District Council,31UH ,Housing Repairs,HRAHRM,HRA Housing Repairs & Maintenance,Housing Maintenance - Replacement Windows and Doors,01/02/2012,1229490,"2,413.61",SBP Limited (Trading as Plastal & Permadoor),A036741
North West Leicestershire District Council,31UH ,Housing Repairs,HRAHRM,HRA Housing Repairs & Maintenance,Gas & Electricity - Boiler replacement,01/02/2012,1229548,559.38,Lakers UK,A031787
North West Leicestershire District Council,31UH ,Housing Repairs,HRAHRM,HRA Housing Repairs & Maintenance,Gas & Electricity - Boiler replacement,01/02/2012,1229549,899.22,Lakers UK,A031787
North West Leicestershire District Council,31UH ,Housing Repairs,HRAHRM,HRA Housing Repairs & Maintenance,Housing Maintenance - Supply and Fit of Composite Doors and UPVC Frames,01/02/2012,1229580,539.91,I G Doors Limited,A038041
North West Leicestershire District Council,31UH ,Housing Repairs,HRAHRM,HRA Housing Repairs & Maintenance,Gas & Electricity - Boiler replacement,01/02/2012,1229581,"1,535.33",Lakers UK,A031787
North West Leicestershire District Council,31UH ,Housing Repairs,HRAHRM,HRA Housing Repairs & Maintenance,Gas & Electricity - Boiler replacement,01/02/2012,1229582,"1,061.21",Lakers UK,A031787
North West Leicestershire District Council,31UH ,Housing Repairs,HRAHRM,HRA Housing Repairs & Maintenance,Gas & Electricity - Boiler replacement,01/02/2012,1229583,"1,888.01",Lakers UK,A031787
North West Leicestershire District Council,31UH ,Housing Repairs,HRAHRM,HRA Housing Repairs & Maintenance,Gas & Electricity - Boiler replacement,01/02/2012,1229574,"3,441.94",Lakers UK,A031787
North West Leicestershire District Council,31UH ,Housing Repairs,HRAHRM,HRA Housing Repairs & Maintenance,Gas & Electricity - Boiler replacement,01/02/2012,1229594,"1,304.36",Lakers UK,A031787
North West Leicestershire District Council,31UH ,Housing Repairs,HRAHRM,HRA Housing Repairs & Maintenance,Gas & Electricity - Boiler replacement,01/02/2012,1229595,697.28,Lakers UK,A031787
North West Leicestershire District Council,31UH ,Housing Repairs,HRAHRM,HRA Housing Repairs & Maintenance,Gas & Electricity - Boiler replacement,01/02/2012,1229597,600.00,Lakers UK,A031787
North West Leicestershire District Council,31UH ,Housing Repairs,HRAHRM,HRA Housing Repairs & Maintenance,Gas & Electricity - Boiler replacement,01/02/2012,1229602,996.32,Lakers UK,A031787
North West Leicestershire District Council,31UH ,Housing Repairs,HRAHRM,HRA Housing Repairs & Maintenance,Gas & Electricity - Boiler replacement,01/02/2012,1229603,"1,715.51",Lakers UK,A031787
North West Leicestershire District Council,31UH ,Housing Repairs,HRAHRM,HRA Housing Repairs & Maintenance,Gas & Electricity - Boiler replacement,01/02/2012,1229604,"1,556.25",Lakers UK,A031787
North West Leicestershire District Council,31UH ,Housing Repairs,HRAHRM,HRA Housing Repairs & Maintenance,Gas & Electricity - Boiler replacement,01/02/2012,1229605,766.60,Lakers UK,A031787
North West Leicestershire District Council,31UH ,Housing Repairs,HRAHRM,HRA Housing Repairs & Maintenance,Gas & Electricity - Boiler replacement,01/02/2012,1229606,"1,671.02",Lakers UK,A031787
North West Leicestershire District Council,31UH ,Housing Repairs,HRAHRM,HRA Housing Repairs & Maintenance,Gas & Electricity - Boiler replacement,01/02/2012,1229607,"2,750.48",Lakers UK,A031787
North West Leicestershire District Council,31UH ,Housing Repairs,HRAHRM,HRA Housing Repairs & Maintenance,Gas & Electricity - Boiler replacement,01/02/2012,1229608,"1,318.93",Lakers UK,A031787
North West Leicestershire District Council,31UH ,Housing Repairs,HRAHRM,HRA Housing Repairs & Maintenance,Gas & Electricity - Boiler replacement,01/02/2012,1229609,653.14,Lakers UK,A031787
North West Leicestershire District Council,31UH ,Housing Repairs,HRAHRM,HRA Housing Repairs & Maintenance,Gas & Electricity - Boiler replacement,01/02/2012,1229611,"2,209.42",Lakers UK,A031787
North West Leicestershire District Council,31UH ,Housing Repairs,HRAHRM,HRA Housing Repairs & Maintenance,Gas & Electricity - Boiler replacement,01/02/2012,1229612,"2,745.42",Lakers UK,A031787
North West Leicestershire District Council,31UH ,Housing Repairs,HRAHRM,HRA Housing Repairs & Maintenance,Gas & Electricity - Boiler replacement,01/02/2012,1229613,"1,015.97",Lakers UK,A031787
North West Leicestershire District Council,31UH ,Housing Repairs,HRAHRM,HRA Housing Repairs & Maintenance,Gas & Electricity - Boiler replacement,01/02/2012,1229616,"1,316.74",Lakers UK,A031787
North West Leicestershire District Council,31UH ,Housing Repairs,HRAHRM,HRA Housing Repairs & Maintenance,Gas & Electricity - Boiler replacement,01/02/2012,1229610,"2,487.55",Lakers UK,A031787
North West Leicestershire District Council,31UH ,Housing Repairs,HRAHRM,HRA Housing Repairs & Maintenance,Housing Maintenance - Replacement Windows and Doors,08/02/2012,1229844,668.77,SBP Limited (Trading as Plastal & Permadoor),A036741
North West Leicestershire District Council,31UH ,Housing Repairs,HRAHRM,HRA Housing Repairs & Maintenance,Housing Maintenance - Replacement Windows and Doors,08/02/2012,1229855,"2,629.96",SBP Limited (Trading as Plastal & Permadoor),A036741
North West Leicestershire District Council,31UH ,Housing Repairs,HRAHRM,HRA Housing Repairs & Maintenance,Gas & Electricity - Boiler replacement,08/02/2012,1229931,709.02,Lakers UK,A031787
North West Leicestershire District Council,31UH ,Housing Repairs,HRAHRM,HRA Housing Repairs & Maintenance,Gas & Electricity - Boiler replacement,08/02/2012,1229962,"1,371.12",Lakers UK,A031787
North West Leicestershire District Council,31UH ,Housing Repairs,HRAHRM,HRA Housing Repairs & Maintenance,Gas & Electricity - Boiler replacement,08/02/2012,1229967,650.00,Lakers UK,A031787
North West Leicestershire District Council,31UH ,Housing Repairs,HRAHRM,HRA Housing Repairs & Maintenance,Gas & Electricity - Boiler replacement,08/02/2012,1229995,579.92,Lakers UK,A031787
North West Leicestershire District Council,31UH ,Housing Repairs,HRAHRM,HRA Housing Repairs & Maintenance,Gas & Electricity - Boiler replacement,08/02/2012,1229973,"1,288.52",Lakers UK,A031787
North West Leicestershire District Council,31UH ,Housing Repairs,HRAHRM,HRA Housing Repairs & Maintenance,Construction - Rewire Works,08/02/2012,1230021,"2,243.19",Lovell Respond,A038131
North West Leicestershire District Council,31UH ,Housing Repairs,HRAHRM,HRA Housing Repairs & Maintenance,Construction - Rewire Works,08/02/2012,1230022,"2,277.51",Lovell Respond,A038131
North West Leicestershire District Council,31UH ,Housing Repairs,HRAHRM,HRA Housing Repairs & Maintenance,Construction - Rewire Works,08/02/2012,1230023,"2,305.35",Lovell Respond,A038131
North West Leicestershire District Council,31UH ,Housing Repairs,HRAHRM,HRA Housing Repairs & Maintenance,Construction - Rewire Works,08/02/2012,1230024,"2,207.27",Lovell Respond,A038131
North West Leicestershire District Council,31UH ,Housing Repairs,HRAHRM,HRA Housing Repairs & Maintenance,Construction - Rewire Works,08/02/2012,1230025,"2,175.90",Lovell Respond,A038131
North West Leicestershire District Council,31UH ,Housing Repairs,HRAHRM,HRA Housing Repairs & Maintenance,Construction - Rewire Works,08/02/2012,1230026,"2,207.27",Lovell Respond,A038131
North West Leicestershire District Council,31UH ,Housing Repairs,HRAHRM,HRA Housing Repairs & Maintenance,Gas & Electricity - Boiler replacement,15/02/2012,1230310,"1,232.29",Lakers UK,A031787
North West Leicestershire District Council,31UH ,Housing Repairs,HRAHRM,HRA Housing Repairs & Maintenance,Gas & Electricity - Boiler replacement,15/02/2012,1230311,882.35,Lakers UK,A031787
North West Leicestershire District Council,31UH ,Housing Repairs,HRAHRM,HRA Housing Repairs & Maintenance,Building - General Maintenance works - Minor framework,08/02/2012,1230012,"3,470.00",Alf Wright Construction Limited,A036239
North West Leicestershire District Council,31UH ,Housing Repairs,HRAHRM,HRA Housing Repairs & Maintenance,Construction - Rewire Works,08/02/2012,1230013,"2,207.27",Lovell Respond,A038131
North West Leicestershire District Council,31UH ,Housing Repairs,HRAHRM,HRA Housing Repairs & Maintenance,Construction - Rewire Works,08/02/2012,1230014,"2,805.18",Lovell Respond,A038131
North West Leicestershire District Council,31UH ,Housing Repairs,HRAHRM,HRA Housing Repairs & Maintenance,Construction - Rewire Works,08/02/2012,1230015,"2,303.75",Lovell Respond,A038131
North West Leicestershire District Council,31UH ,Housing Repairs,HRAHRM,HRA Housing Repairs & Maintenance,Construction - Rewire Works,08/02/2012,1230016,"2,367.75",Lovell Respond,A038131
North West Leicestershire District Council,31UH ,Housing Repairs,HRAHRM,HRA Housing Repairs & Maintenance,Construction - Rewire Works,08/02/2012,1230017,"2,353.32",Lovell Respond,A038131
North West Leicestershire District Council,31UH ,Housing Repairs,HRAHRM,HRA Housing Repairs & Maintenance,Construction - Rewire Works,08/02/2012,1230018,"2,353.32",Lovell Respond,A038131
North West Leicestershire District Council,31UH ,Housing Repairs,HRAHRM,HRA Housing Repairs & Maintenance,Construction - Rewire Works,08/02/2012,1230019,"2,586.09",Lovell Respond,A038131
North West Leicestershire District Council,31UH ,Housing Repairs,HRAHRM,HRA Housing Repairs & Maintenance,Construction - Rewire Works,08/02/2012,1230020,"2,194.95",Lovell Respond,A038131
North West Leicestershire District Council,31UH ,Housing Repairs,HRAHRM,HRA Housing Repairs & Maintenance,Fuel servicing (Hsg Maintenance),15/02/2012,1230327,842.52,Elite Sweep Service,A035675
North West Leicestershire District Council,31UH ,Housing Repairs,HRAHRM,HRA Housing Repairs & Maintenance,Gas & Electricity - Boiler replacement,15/02/2012,1230346,845.64,Lakers UK,A031787
North West Leicestershire District Council,31UH ,Housing Repairs,HRAHRM,HRA Housing Repairs & Maintenance,Gas & Electricity - Boiler replacement,15/02/2012,1230384,"1,278.50",Lakers UK,A031787
North West Leicestershire District Council,31UH ,Housing Repairs,HRAHRM,HRA Housing Repairs & Maintenance,Gas & Electricity - Boiler replacement,15/02/2012,1230385,"1,382.39",Lakers UK,A031787
North West Leicestershire District Council,31UH ,Housing Repairs,HRAHRM,HRA Housing Repairs & Maintenance,Gas & Electricity - Boiler replacement,15/02/2012,1230386,791.35,Lakers UK,A031787
North West Leicestershire District Council,31UH ,Housing Repairs,HRAHRM,HRA Housing Repairs & Maintenance,Gas & Electricity - Boiler replacement,22/02/2012,1230878,"2,069.78",Lakers UK,A031787
North West Leicestershire District Council,31UH ,Housing Repairs,HRAHRM,HRA Housing Repairs & Maintenance,Gas & Electricity - Boiler replacement,22/02/2012,1230879,"1,956.54",Lakers UK,A031787
North West Leicestershire District Council,31UH ,Housing Repairs,HRAHRM,HRA Housing Repairs & Maintenance,Gas & Electricity - Boiler replacement,22/02/2012,1230885,"1,763.87",Lakers UK,A031787
North West Leicestershire District Council,31UH ,Housing Repairs,HRAHRM,HRA Housing Repairs & Maintenance,Gas & Electricity - Boiler replacement,22/02/2012,1230893,"2,211.34",Lakers UK,A031787
North West Leicestershire District Council,31UH ,Housing Repairs,HRAHRM,HRA Housing Repairs & Maintenance,Gas & Electricity - Boiler replacement,22/02/2012,1230894,778.69,Lakers UK,A031787
North West Leicestershire District Council,31UH ,Housing Repairs,HRAHRM,HRA Housing Repairs & Maintenance,Gas & Electricity - Boiler replacement,22/02/2012,1230895,"1,134.07",Lakers UK,A031787
North West Leicestershire District Council,31UH ,Housing Repairs,HRAHRM,HRA Housing Repairs & Maintenance,Gas & Electricity - Boiler replacement,22/02/2012,1230930,"1,185.80",Lakers UK,A031787
North West Leicestershire District Council,31UH ,Housing Repairs,HRAHRM,HRA Housing Repairs & Maintenance,Building Services - Housing - HPIP 9 - 10,22/02/2012,1230932,"1,983.25",Apollo Property Services Group Limited,A036945
North West Leicestershire District Council,31UH ,Housing Repairs,HRAHRM,HRA Housing Repairs & Maintenance,Gas & Electricity - Boiler replacement,22/02/2012,1230957,"1,467.00",Lakers UK,A031787
North West Leicestershire District Council,31UH ,Housing Repairs,HRAHRM,HRA Housing Repairs & Maintenance,Gas & Electricity - Boiler replacement,22/02/2012,1230985,"1,161.82",Lakers UK,A031787
North West Leicestershire District Council,31UH ,Housing Repairs,HRAHRM,HRA Housing Repairs & Maintenance,Gas & Electricity - Boiler replacement,22/02/2012,1231021,813.37,Lakers UK,A031787
North West Leicestershire District Council,31UH ,Housing Repairs,HRAHRM,HRA Housing Repairs & Maintenance,Gas & Electricity - Boiler replacement,22/02/2012,1231022,577.49,Lakers UK,A031787
North West Leicestershire District Council,31UH ,Housing Repairs,HRAHRM,HRA Housing Repairs & Maintenance,Gas & Electricity - Boiler replacement,22/02/2012,1231033,794.89,Lakers UK,A031787
North West Leicestershire District Council,31UH ,Housing Repairs,HRAHRM,HRA Housing Repairs & Maintenance,Gas & Electricity - Boiler replacement,22/02/2012,1231025,832.52,Lakers UK,A031787
North West Leicestershire District Council,31UH ,Housing Repairs,HRAHRM,HRA Housing Repairs & Maintenance,Gas & Electricity - Boiler replacement,22/02/2012,1231075,530.26,Lakers UK,A031787
North West Leicestershire District Council,31UH ,Housing Repairs,HRAHRM,HRA Housing Repairs & Maintenance,Gas & Electricity - Boiler replacement,22/02/2012,1231077,"2,741.26",Lakers UK,A031787
North West Leicestershire District Council,31UH ,Housing Repairs,HRAHRM,HRA Housing Repairs & Maintenance,Gas & Electricity - Boiler replacement,22/02/2012,1231078,"1,876.19",Lakers UK,A031787
North West Leicestershire District Council,31UH ,Housing Repairs,HRAHRM,HRA Housing Repairs & Maintenance,Building Services ,29/02/2012,1231344,"1,540.00",Apollo Property Services Group Limited,A036945
North West Leicestershire District Council,31UH ,Housing Repairs,HRAHRM,HRA Housing Repairs & Maintenance,Building Services ,29/02/2012,1231345,"1,540.00",Apollo Property Services Group Limited,A036945
North West Leicestershire District Council,31UH ,Housing Repairs,HRAHRM,HRA Housing Repairs & Maintenance,Building Services ,29/02/2012,1231346,"4,640.23",Apollo Property Services Group Limited,A036945
North West Leicestershire District Council,31UH ,Housing Repairs,HRAHRM,HRA Housing Repairs & Maintenance,Building Services ,29/02/2012,1231347,"3,977.63",Apollo Property Services Group Limited,A036945
North West Leicestershire District Council,31UH ,Housing Repairs,HRAHRM,HRA Housing Repairs & Maintenance,Building Services ,29/02/2012,1231348,"3,977.63",Apollo Property Services Group Limited,A036945
North West Leicestershire District Council,31UH ,Housing Repairs,HRAHRM,HRA Housing Repairs & Maintenance,Building Services ,29/02/2012,1231349,"4,640.23",Apollo Property Services Group Limited,A036945
North West Leicestershire District Council,31UH ,Housing Repairs,HRAHRM,HRA Housing Repairs & Maintenance,Building Services ,29/02/2012,1231350,"1,540.00",Apollo Property Services Group Limited,A036945
North West Leicestershire District Council,31UH ,Housing Repairs,HRAHRM,HRA Housing Repairs & Maintenance,Building Services ,29/02/2012,1231351,"1,540.00",Apollo Property Services Group Limited,A036945
North West Leicestershire District Council,31UH ,Housing Repairs,HRAHRM,HRA Housing Repairs & Maintenance,Building Services ,29/02/2012,1231352,"1,540.00",Apollo Property Services Group Limited,A036945
North West Leicestershire District Council,31UH ,Housing Repairs,HRAHRM,HRA Housing Repairs & Maintenance,Building Services ,29/02/2012,1231353,"1,540.00",Apollo Property Services Group Limited,A036945
North West Leicestershire District Council,31UH ,Housing Repairs,HRAHRM,HRA Housing Repairs & Maintenance,Building Services ,29/02/2012,1231354,"4,881.39",Apollo Property Services Group Limited,A036945
North West Leicestershire District Council,31UH,Housing Strategy,HS,Community - Housing Strategy,Printing - Lot 1 + 3,01/02/2012,1229260,610.41,Leicestershire County Council Central Print,A037238
North West Leicestershire District Council,31UH,Leisure Centres,HLC,Hermitage Leisure Centre,Water - Treatment Chemicals,01/02/2012,1229240,891.59,Stowlin Ltd,A001591
North West Leicestershire District Council,31UH,Leisure Centres,HLC,Hermitage Leisure Centre,Awards,01/02/2012,1229328,506.47,ASA Awards,A001837
North West Leicestershire District Council,31UH,Corporate Director,HR,Human Resources,Tuition Fees,01/02/2012,1229342,"1,565.00",Sheffield Hallam University,A016393
North West Leicestershire District Council,31UH,Leisure Centres,HPLC,Hood Park Leisure Centre,Leisure - Pool Covers,08/02/2012,1229415,820.80,Forge Leisure Ltd,A025014
North West Leicestershire District Council,31UH,Information Technology,ICT,ICT Services,IT - Computer disaster recovery,08/02/2012,1229880,"10,820.00",ICM Business Continuity Services Ltd,A024351
North West Leicestershire District Council,31UH,Property Services,PROPCL,Property Commercial Lettings,Building - General Maintenance works - Minor framework,08/02/2012,1230123,"3,095.80",Alf Wright Construction Limited,A036239
North West Leicestershire District Council,31UH,Street Management,ENOT,Environment Transport,Hire of |Gym,15/02/2012,1230262,"20,494.80",Pace Fuelcare Limited,A038908
North West Leicestershire District Council,31UH,Information Technology,ICT,ICT Services,IT - Telecommunications and data services,15/02/2012,1230521,"1,839.58",Freedom Communications (UK) Ltd,A032826
North West Leicestershire District Council,31UH,Leisure Centres,HPLC,Hood Park Leisure Centre,Leisure - Swimwear and accessories,22/02/2012,1230646,688.50,Zoggs International Ltd,A001833
North West Leicestershire District Council,31UH,Information Technology,ICT,ICT Services,IT - Telecommunications and data services,15/02/2012,1230554,"1,824.58",Freedom Communications (UK) Ltd,A032826
North West Leicestershire District Council,31UH,Housing,HRAPBS,HRA Performance & Business Support,Reports,15/02/2012,1230119,"10,400.00",Arlingclose Ltd,A035603
North West Leicestershire District Council,31UH,Property Services,PROPFM,Property Facilities Management,Security Systems - Fire Detection,15/02/2012,1230507,"1,216.00",TECSERV UK LIMITED,A028261
North West Leicestershire District Council,31UH,Information Technology,ICT,ICT Services,IT - software services,15/02/2012,1230465,"3,038.34",Phoenix Software Limited,A001298
North West Leicestershire District Council,31UH,Information Technology,ICT,ICT Services,IT - Software Licenses - Database Management System,22/02/2012,1230676,574.33,Sanderson Limited,A020546
North West Leicestershire District Council,31UH,Corporate Director,HR,Human Resources,Opticians - Eyetests,22/02/2012,1230678,525.00,Specsavers Corporate Eyecare,A028625
North West Leicestershire District Council,31UH,Street Management,ENOP,Environment Parks,Grounds Maintenance - Landscaping,22/02/2012,1230681,814.00,Manor Landscapes,A035186
North West Leicestershire District Council,31UH,Street Management,ESS,Environment - Street Scene,Consultancy,22/02/2012,1230682,600.00,Sharps Acoustic ,A039235
North West Leicestershire District Council,31UH,Street Management,ESS,Environment - Street Scene,Consultancy,22/02/2012,1230683,"2,050.00",Sharps Acoustic ,A039235
North West Leicestershire District Council,31UH,Planning & Development,EDC,Environment - Development Control,Performing Artist,01/02/2012,1229364,"1,446.51",Planning Inquiry Administration Services,A038890
North West Leicestershire District Council,31UH,Property Services,PROPFM,Property Facilities Management,Electrician - PAT testing,01/02/2012,1229442,"4,095.00",Calbarrie Ltd,A021932
North West Leicestershire District Council,31UH,Housing Strategy,HS,Community - Housing Strategy,Printing - Lot 1 + 3,08/02/2012,1229731,"1,209.01",Leicestershire County Council Central Print,A037238
North West Leicestershire District Council,31UH,Housing Strategy,HS,Community - Housing Strategy,Accomodation - Bed and Breakfast for Housing Strategy,08/02/2012,1229722,"1,610.00",Pinewood Lodge,A032364
North West Leicestershire District Council,31UH,Neighbourhoods & Communities,NACCS,N & C Community Safety,Advertising - Community Safety Logo  on goods,08/02/2012,1229813,"1,101.35",4imprint Direct Limited,A033612
North West Leicestershire District Council,31UH,Leisure Centres,HLC,Hermitage Leisure Centre,Leisure - Swimming teachers/badges,08/02/2012,1229805,526.27,Swimming Teachers Association Ltd,A001616
North West Leicestershire District Council,31UH,Street Management,ENOP,Environment Parks,Grounds Maintenance - Landscaping,15/02/2012,1230198,748.00,Manor Landscapes,A035186
North West Leicestershire District Council,31UH,Street Management,ENOT,Environment Transport,Environment - Specialist Hydraulic Driveline Supplies,15/02/2012,1230202,713.20,Driveline Systems Limited,A037762
North West Leicestershire District Council,31UH,Leisure Centres,HPLC,Hood Park Leisure Centre,Gym Equipment,15/02/2012,1230457,"2,830.50",Fit Health Limited t/a Instyle Fitness,A031791
North West Leicestershire District Council,31UH,Housing Strategy,HS,Community - Housing Strategy,Accomodation - Bed and Breakfast for Housing Strategy,15/02/2012,1230482,700.00,Pinewood Lodge,A032364
North West Leicestershire District Council,31UH,Leisure Centres,HPLC,Hood Park Leisure Centre,Leisure - Recreational equipment supplier,22/02/2012,1228583,545.00,Technogym Uk Limited,A001642
North West Leicestershire District Council,31UH,Planning & Development,EBC,Building Control,Scanning,15/02/2012,1229382,"1,692.00",Data Insight (GIS) Limited,A037925
North West Leicestershire District Council,31UH,Planning & Development,EBC,Building Control,Scanning,15/02/2012,1230526,"1,128.00",Data Insight (GIS) Limited,A037925
North West Leicestershire District Council,31UH,Housing Strategy,HS,Community - Housing Strategy,Accomodation - Bed and Breakfast for Housing Strategy,22/02/2012,1230629,700.00,Pinewood Lodge,A032364
North West Leicestershire District Council,31UH,Street Management,ENOT,Environment Transport,"Training - Industrial Training for Forklift Drivers, Warehouse Handling etc",22/02/2012,1230631,"1,353.75",Keith Cook Training Services,A027792
North West Leicestershire District Council,31UH,Leisure Centres,HLC,Hermitage Leisure Centre,Building - General Maintenance works - Minor framework,22/02/2012,1230716,"1,371.23",Herbert Baggaley Construction Limited,A036241
North West Leicestershire District Council,31UH,Housing,HRAHM,HRA Housing Management,Printing - Lot 2 + 3,01/02/2012,1229463,730.00,The Barkby Thorpe Press,A037241
North West Leicestershire District Council,31UH,Housing,HRAPBS,HRA Performance & Business Support,Mail services,01/02/2012,1229076,"3,300.00",Royal Mail Group Plc,A001418
North West Leicestershire District Council,31UH,Finance,FINPLA,Financial Planning,Bicycles - Through the Cycle2Work Scheme,01/02/2012,1229249,"5,525.00",Halfords,A028298
North West Leicestershire District Council,31UH,Finance,HOFI,Head of Finance,Training,01/02/2012,1229282,"13,450.00",Hinckley & Bosworth Borough Council,A000770
North West Leicestershire District Council,31UH,Environmental Health,EEHL,Environmental Health & Licensing,Subscription - To BPCA and CAT OBS,01/02/2012,1229281,693.00,British Pest Control Association,A023899
North West Leicestershire District Council,31UH,Street Management,ENOT,Environment Transport,Vehicle - Servicing- fuel dispensing systems,01/02/2012,1229425,620.00,Triscan Systems Limited,A036521
North West Leicestershire District Council,31UH,Leisure Centres,HPLC,Hood Park Leisure Centre,Leisure - Astro turf maintenance,08/02/2012,1229802,855.79,Technical Surfaces Ltd,A000516
North West Leicestershire District Council,31UH,Planning & Development,EDC,Environment - Development Control,Maintenance - MS7000 Microfiche Reader,08/02/2012,1230084,590.00,Covergold Limited,A002296
North West Leicestershire District Council,31UH,Street Management,ENOGT,Environment General Technician,Street Supplies - Street Furniture - Bus / Smoking Shelters,08/02/2012,1230082,750.00,Commutaports Ltd,A000389
North West Leicestershire District Council,31UH,Finance,FINPLA,Financial Planning,Recharges,08/02/2012,1230087,"26,500.00",Charnwood Borough Council,A000323
North West Leicestershire District Council,31UH,Finance,FINPLA,Financial Planning,"ICT - Software, Maintenance and Licenses for IBS Housing",08/02/2012,1230089,"1,309.00",Capita Business Services Ltd,A002968
North West Leicestershire District Council,31UH,Property Services,PROPFM,Property Facilities Management,Security services,15/02/2012,1229889,"3,572.00",Spectra Security Limited,A002190
North West Leicestershire District Council,31UH,Planning & Development,EPP,Environment Planning Policy,Consultant - Water Cycle Study,15/02/2012,1230207,"4,339.51",AMEC Environment & Infrastructure UK Ltd,A036580
North West Leicestershire District Council,31UH,Planning & Development,EDC,Environment - Development Control,Sound & Lighting - Corporate Events,15/02/2012,1230193,693.00,Chameleon Pro Audio & Lighting Ltd,A027592
North West Leicestershire District Council,31UH,Housing,HRAPBS,HRA Performance & Business Support,"ICT - Software, Maintenance and Licenses for IBS Housing",15/02/2012,1229029,988.20,Capita Business Services Ltd,A002968
North West Leicestershire District Council,31UH,Information Technology,ICT,ICT Services,IT - Equipment,15/02/2012,1230289,"2,130.00",Dell Computer Corporation Ltd,A000470
North West Leicestershire District Council,31UH,Property Services,PROPFM,Property Facilities Management,Builders - Office Refurb Contract,15/02/2012,1230618,"98,210.23",G F Tomlinson Building Ltd,A015236
North West Leicestershire District Council,31UH,Property Services,PROPFM,Property Facilities Management,Building - General Maintenance works - Minor framework,22/02/2012,1230495,"2,640.00",Alf Wright Construction Limited,A036239
North West Leicestershire District Council,31UH,Property Services,PROPFM,Property Facilities Management,Building - General Maintenance works - Minor framework,22/02/2012,1230640,650.00,Alf Wright Construction Limited,A036239
North West Leicestershire District Council,31UH,Leisure Centres,HPLC,Hood Park Leisure Centre,Alarms - Fire and Security,22/02/2012,1230642,682.77,ADT Fire And Security,A000021
North West Leicestershire District Council,31UH,Property Services,PROPCL,Property Commercial Lettings,Property - Mechanical and Electrical Works,22/02/2012,1230791,794.32,Fred'k Lamb,A038167
North West Leicestershire District Council,31UH,Leisure Centres,HLBC,Hermitage Bar & Catering,Catering Supplies - Confectionery.,15/02/2012,1230471,748.88,Palmer Harvey Mclane Ltd,A001264
North West Leicestershire District Council,31UH,Finance,FINPLA,Financial Planning,Subscriptions,15/02/2012,1230477,"9,088.00",Audit Commission,A000110
North West Leicestershire District Council,31UH,Housing Strategy,HS,Community - Housing Strategy,Accommodation - Bed and Breakfast,15/02/2012,1230490,"1,540.00",The Cedars,A027796
North West Leicestershire District Council,31UH,Communications,CP,Corporate - Communications,Advertising - Full page advert in B2B green newsletter,22/02/2012,1230558,"2,299.00",Local Lifestyle Limited,A037318
North West Leicestershire District Council,31UH,Street Management,ENOP,Environment Parks,Horticulture  - Trees,22/02/2012,1230784,"1,071.00",Barcham Tree PLC,A034582
North West Leicestershire District Council,31UH,Environmental Health,EEHL,Environmental Health & Licensing,IT - Licensing systems,22/02/2012,1230786,732.00,NewAuto Ltd,A034761
North West Leicestershire District Council,31UH,Street Management,ENOT,Environment Transport,Gas - Heating,22/02/2012,1230863,580.84,Calor Gas Limited,A032686
North West Leicestershire District Council,31UH,Finance,FINPLA,Financial Planning,"Printing- Council Tax, NNDR and benefits",22/02/2012,1230875,920.70,CFH - Total Document Management Limited,A038192
North West Leicestershire District Council,31UH,Planning & Development,ECCTV,Environment - Town Centre/CCTV,Events - Seasonal - Christmas lighting,01/02/2012,1229079,"4,895.00",Turnock Ltd,A023267
North West Leicestershire District Council,31UH,Corporate Director,HR,Human Resources,Consultancy - Finance,08/02/2012,1229751,"8,423.25",R W Nelsey Consultancy,A038049
North West Leicestershire District Council,31UH,Leisure Centres,HPBC,Hood Park Bar and Catering,Catering Supplies - Confectionery.,01/02/2012,1229323,740.96,Palmer Harvey Mclane Ltd,A001264
North West Leicestershire District Council,31UH,Property Services,PROPCL,Property Commercial Lettings,Building - General Maintenance works - Minor framework,01/02/2012,1228613,995.00,Alf Wright Construction Limited,A036239
North West Leicestershire District Council,31UH,Neighbourhoods & Communities,NACCS,N & C Community Safety,Professional fees,01/02/2012,1229384,627.50,Mansfield Mediation Ltd,A034964
North West Leicestershire District Council,31UH,Street Management,ENOP,Environment Parks,Horticulture - Trees & Shrubs supplies,01/02/2012,1229395,719.25,R & N Plant Specialists,A029800
North West Leicestershire District Council,31UH,Information Technology,ICT,ICT Services,Paper,01/02/2012,1229452,556.13,Antalis McNaughton Limited,A038178
North West Leicestershire District Council,31UH,Information Technology,ICT,ICT Services,IT - Telecommunications and data services,08/02/2012,1229393,"3,273.00",Freedom Communications (UK) Ltd,A032826
North West Leicestershire District Council,31UH,Street Management,ESS,Environment - Street Scene,IT - Cemetery Software Support,08/02/2012,1229727,"1,850.00",Clear Skies Software Ltd,A029730
North West Leicestershire District Council,31UH,Housing Strategy,HS,Community - Housing Strategy,Accomodation - Bed and Breakfast for Housing Strategy,,1229721,"2,100.00",Pinewood Lodge,A032364
North West Leicestershire District Council,31UH,Finance,FINPLA,Financial Planning,Housing - Asset register software,08/02/2012,1230090,696.58,CIPFA Business Limited,A036780
North West Leicestershire District Council,31UH,Housing,HRAOPS,HRA Older Persons Service,Training,08/02/2012,1229730,"6,334.60",Hinckley & Bosworth Borough Council,A000770
North West Leicestershire District Council,31UH,Corporate Director,HR,Human Resources,Consultancy,22/02/2012,1230709,"1,830.30",Libby Carter Limited,A033121
North West Leicestershire District Council,31UH,Leisure Centres,HLC,Hermitage Leisure Centre,Leisure - Equipment - supply & servicing,22/02/2012,1226669,554.52,Dalesauna Limited,A000454
North West Leicestershire District Council,31UH,Leisure Centres,HPLC,Hood Park Leisure Centre,Leisure - Recreational equipment supplier,22/02/2012,1230776,"1,208.00",Technogym Uk Limited,A001642
North West Leicestershire District Council,31UH,Street Management,ENOT,Environment Transport,Roads - Rock Salt,15/02/2012,1230496,992.62,Salt Union Ltd,A001433
North West Leicestershire District Council,31UH,Corporate Director,HR,Human Resources,Fees ,22/02/2012,1230671,"6,000.00",Attenti Ltd,A039036
North West Leicestershire District Council,31UH,Corporate Director,HR,Human Resources,Charity Services - Childcare Vouchers,22/02/2012,1230673,"2,865.00",PES Limited,A035521
North West Leicestershire District Council,31UH,Street Management,ENOWM,Environment Waste Management,Waste Disposal - Recyclable containers,22/02/2012,1230258,"19,561.50",Straight Plc,A024906
North West Leicestershire District Council,31UH,Planning & Development,ECCTV,Environment - Town Centre/CCTV,Security - Provide Monitoring Services in respect of CCTV,22/02/2012,1230517,"4,061.75",Premier Security Services (Midlands) Limited,A038132
,,,,,,,,"1,313,576.11",,
